[Event "*** Titled Tuesday Blitz"]
[Site "Chess.com"]
[Date "2020.04.07"]
[Round "7"]
[White "lachesisQ"]
[Black "Batica1984"]
[Result "1-0"]
[WhiteElo "3144"]
[BlackElo "2842"]
[TimeControl "180+1"]
[EndTime "14:19:57 PDT"]
[Termination "lachesisQ won by resignation"]

1. c4 {[%clk 0:02:59.3]} 1... c5 {[%clk 0:02:58.9]} 2. Nf3 {[%clk 0:02:59.1]}
2... Nc6 {[%clk 0:02:57.4]} 3. Nc3 {[%clk 0:02:59]} 3... g6 {[%clk 0:02:52.4]}
4. e3 {[%clk 0:02:57.9]} 4... Bg7 {[%clk 0:02:51.8]} 5. d4 {[%clk 0:02:57.9]}
5... d6 {[%clk 0:02:51.7]} 6. Be2 {[%clk 0:02:56.2]} 6... e6 {[%clk 0:02:42]} 7.
O-O {[%clk 0:02:48.7]} 7... Nge7 {[%clk 0:02:41.2]} 8. b3 {[%clk 0:02:48.9]}
8... O-O {[%clk 0:02:40.3]} 9. Bb2 {[%clk 0:02:49]} 9... b6 {[%clk 0:02:16.6]}
10. Qd2 {[%clk 0:02:48.6]} 10... Bb7 {[%clk 0:02:14.6]} 11. Rfd1 {[%clk
0:02:37.4]} 11... cxd4 {[%clk 0:02:09.3]} 12. exd4 {[%clk 0:02:30.1]} 12... d5
{[%clk 0:02:03]} 13. Rac1 {[%clk 0:02:29.7]} 13... Rc8 {[%clk 0:02:02]} 14. Ba3
{[%clk 0:02:26.1]} 14... a6 {[%clk 0:01:43.5]} 15. cxd5 {[%clk 0:02:16.1]} 15...
exd5 {[%clk 0:01:41.6]} 16. Bd3 {[%clk 0:02:07.2]} 16... Re8 {[%clk 0:01:41.2]}
17. Ne2 {[%clk 0:02:07.1]} 17... Rc7 {[%clk 0:01:27.3]} 18. h3 {[%clk
0:02:06.1]} 18... Bc8 {[%clk 0:01:27.1]} 19. Ng3 {[%clk 0:02:02.9]} 19... Be6
{[%clk 0:01:04.7]} 20. Bxa6 {[%clk 0:01:55.9]} 20... Qa8 {[%clk 0:00:57]} 21.
Bxe7 {[%clk 0:01:51.7]} 21... Qxa6 {[%clk 0:00:53.4]} 22. Bd6 {[%clk 0:01:49.5]}
22... Rcc8 {[%clk 0:00:53.2]} 23. Ne5 {[%clk 0:01:48.1]} 23... b5 {[%clk
0:00:51.7]} 24. Nxc6 {[%clk 0:01:39.7]} 24... Rxc6 {[%clk 0:00:51.2]} 25. Be5
{[%clk 0:01:40.2]} 25... f6 {[%clk 0:00:44.7]} 26. Bf4 {[%clk 0:01:39.2]} 26...
Rec8 {[%clk 0:00:44.8]} 27. Rxc6 {[%clk 0:01:30.3]} 27... Rxc6 {[%clk
0:00:44.8]} 28. Re1 {[%clk 0:01:30.3]} 28... h5 {[%clk 0:00:43]} 29. Bh6 {[%clk
0:01:28.6]} 29... Bf7 {[%clk 0:00:36.1]} 30. Bxg7 {[%clk 0:01:27.6]} 30... Kxg7
{[%clk 0:00:36.5]} 31. Ne2 {[%clk 0:01:24]} 31... g5 {[%clk 0:00:34.3]} 32. Ng3
{[%clk 0:01:18.7]} 32... Qc8 {[%clk 0:00:31.1]} 33. a4 {[%clk 0:01:04.3]} 33...
bxa4 {[%clk 0:00:30.3]} 34. bxa4 {[%clk 0:01:05.2]} 34... h4 {[%clk 0:00:30.6]}
35. Nf1 {[%clk 0:01:04.6]} 35... Rc4 {[%clk 0:00:30]} 36. a5 {[%clk 0:01:03.1]}
36... Rc2 {[%clk 0:00:26.2]} 37. Qd3 {[%clk 0:00:55.9]} 37... Ra2 {[%clk
0:00:26.2]} 38. Ne3 {[%clk 0:00:53.5]} 38... Bg6 {[%clk 0:00:26.3]} 39. Qb5
{[%clk 0:00:52.2]} 39... Qe6 {[%clk 0:00:23.1]} 40. Rc1 {[%clk 0:00:46.4]} 40...
Be4 {[%clk 0:00:21.7]} 41. Qb8 {[%clk 0:00:33.6]} 41... Kg6 {[%clk 0:00:19]} 42.
Qf8 {[%clk 0:00:31.8]} 42... Rxa5 {[%clk 0:00:15.7]} 43. Rc7 {[%clk 0:00:30.6]}
43... Ra1+ {[%clk 0:00:14.1]} 44. Nf1 {[%clk 0:00:29.1]} 44... Rxf1+ {[%clk
0:00:08.3]} 45. Kxf1 {[%clk 0:00:29]} 45... Bxg2+ {[%clk 0:00:08.5]} 46. Kg1
{[%clk 0:00:20.6]} 46... Qe1+ {[%clk 0:00:07.8]} 47. Kxg2 {[%clk 0:00:21.1]}
47... Qe4+ {[%clk 0:00:07.7]} 48. Kf1 {[%clk 0:00:21.6]} 48... Qb1+ {[%clk
0:00:06.6]} 49. Ke2 {[%clk 0:00:21.4]} 49... Qb2+ {[%clk 0:00:06.9]} 50. Kf3
{[%clk 0:00:18.7]} 50... Qb3+ {[%clk 0:00:04.9]} 51. Kg2 {[%clk 0:00:18.5]} 1-0

[Event "*** Titled Tuesday Blitz"]
[Site "Chess.com"]
[Date "2020.04.07"]
[Round "7"]
[White "Blagorod"]
[Black "esskeettit"]
[Result "0-1"]
[WhiteElo "2114"]
[BlackElo "2322"]
[TimeControl "180+1"]
[EndTime "14:19:58 PDT"]
[Termination "esskeettit won by resignation"]

1. e4 {[%clk 0:03:00.9]} 1... c5 {[%clk 0:02:59.8]} 2. Nc3 {[%clk 0:03:00.3]}
2... Nc6 {[%clk 0:02:59.8]} 3. g3 {[%clk 0:03:00.7]} 3... g6 {[%clk 0:02:59.5]}
4. Bg2 {[%clk 0:03:01.2]} 4... Bg7 {[%clk 0:03:00]} 5. d3 {[%clk 0:03:01.8]}
5... d6 {[%clk 0:03:00.2]} 6. f4 {[%clk 0:03:00]} 6... e6 {[%clk 0:02:59.8]} 7.
Nf3 {[%clk 0:03:00]} 7... Nge7 {[%clk 0:03:00]} 8. O-O {[%clk 0:03:00.5]} 8...
O-O {[%clk 0:03:00.6]} 9. Be3 {[%clk 0:03:00.7]} 9... Nd4 {[%clk 0:02:55.6]} 10.
e5 {[%clk 0:03:00.5]} 10... Nef5 {[%clk 0:02:46.2]} 11. Bf2 {[%clk 0:03:00.5]}
11... Nxf3+ {[%clk 0:02:34.4]} 12. Qxf3 {[%clk 0:02:59.6]} 12... dxe5 {[%clk
0:02:29.1]} 13. fxe5 {[%clk 0:02:59.8]} 13... Bxe5 {[%clk 0:02:28.3]} 14. Bxc5
{[%clk 0:02:57.5]} 14... Re8 {[%clk 0:02:24.5]} 15. g4 {[%clk 0:02:37.7]} 15...
Qc7 {[%clk 0:02:23]} 16. Bf2 {[%clk 0:01:59.3]} 16... Bxh2+ {[%clk 0:02:17.2]}
17. Kh1 {[%clk 0:01:59.7]} 17... Nh6 {[%clk 0:02:00.3]} 18. Ne4 {[%clk 0:01:54]}
18... Be5 {[%clk 0:02:00.7]} 19. Nf6+ {[%clk 0:01:46.9]} 19... Bxf6 {[%clk
0:02:00.6]} 20. Qxf6 {[%clk 0:01:47]} 20... Nxg4 {[%clk 0:02:00.4]} 21. Qh4
{[%clk 0:01:40.5]} 21... Nxf2+ {[%clk 0:01:59.8]} 22. Rxf2 {[%clk 0:01:40.6]}
22... f5 {[%clk 0:01:59.7]} 23. d4 {[%clk 0:01:25.2]} 23... Bd7 {[%clk
0:01:51.7]} 24. d5 {[%clk 0:01:24.7]} 24... exd5 {[%clk 0:01:51.3]} 25. Bxd5+
{[%clk 0:01:24.5]} 25... Be6 {[%clk 0:01:51.6]} 26. Bg2 {[%clk 0:01:19.9]} 26...
Rad8 {[%clk 0:01:44.9]} 27. Re1 {[%clk 0:01:13]} 27... Bf7 {[%clk 0:01:44.4]}
28. Rg1 {[%clk 0:01:06.7]} 28... Qe5 {[%clk 0:01:31.3]} 29. Bxb7 {[%clk
0:01:02.4]} 29... Rd4 {[%clk 0:01:23.5]} 30. Qh3 {[%clk 0:00:52.9]} 30... Bd5+
{[%clk 0:01:03.1]} 31. Bxd5+ {[%clk 0:00:51.5]} 31... Qxd5+ {[%clk 0:01:04]} 32.
Rfg2 {[%clk 0:00:45.3]} 32... Kh8 {[%clk 0:00:41.4]} 33. c3 {[%clk 0:00:26.4]}
33... Rde4 {[%clk 0:00:32.2]} 34. b3 {[%clk 0:00:20.1]} 34... Qd8 {[%clk
0:00:24.9]} 35. Rh2 {[%clk 0:00:18]} 35... R8e7 {[%clk 0:00:19.4]} 36. Rxg6
{[%clk 0:00:17.7]} 36... Qd1+ {[%clk 0:00:17.1]} 37. Rg1 {[%clk 0:00:17.3]}
37... Qd5 {[%clk 0:00:16.4]} 38. Qg2 {[%clk 0:00:16.3]} 38... f4 {[%clk
0:00:12.1]} 39. c4 {[%clk 0:00:16.2]} 39... Qf7 {[%clk 0:00:09.3]} 40. Qb2+
{[%clk 0:00:14.9]} 40... R7e5 {[%clk 0:00:05.7]} 41. Qd2 {[%clk 0:00:13.9]}
41... f3 {[%clk 0:00:04.3]} 42. Qd8+ {[%clk 0:00:13.4]} 42... Re8 {[%clk
0:00:04.4]} 43. Qa5 {[%clk 0:00:12]} 43... f2 {[%clk 0:00:03.4]} 44. Qc3+ {[%clk
0:00:11.4]} 44... R8e5 {[%clk 0:00:02]} 45. Rf1 {[%clk 0:00:11.9]} 45... Re3
{[%clk 0:00:01.8]} 46. Rfxf2 {[%clk 0:00:06]} 46... Qxf2 {[%clk 0:00:02.7]} 47.
Rxf2 {[%clk 0:00:06]} 47... Rxc3 {[%clk 0:00:02.8]} 48. Rf8+ {[%clk 0:00:06.1]}
48... Kg7 {[%clk 0:00:02.4]} 49. Ra8 {[%clk 0:00:06.7]} 49... Re1+ {[%clk
0:00:02.8]} 50. Kg2 {[%clk 0:00:05.4]} 50... Re2+ {[%clk 0:00:03.3]} 51. Kf1
{[%clk 0:00:05.5]} 51... Rxa2 {[%clk 0:00:03.7]} 52. Re8 {[%clk 0:00:03.7]}
52... Rc1+ {[%clk 0:00:03.1]} 53. Re1 {[%clk 0:00:04.2]} 53... Rxe1+ {[%clk
0:00:03.4]} 54. Kxe1 {[%clk 0:00:04.7]} 54... Rb2 {[%clk 0:00:04.3]} 55. c5
{[%clk 0:00:04]} 55... Rxb3 {[%clk 0:00:04.3]} 56. Kd2 {[%clk 0:00:04.7]} 56...
Rb5 {[%clk 0:00:04.1]} 57. c6 {[%clk 0:00:04.5]} 57... Rc5 {[%clk 0:00:04.6]}
0-1

[Event "*** Titled Tuesday Blitz"]
[Site "Chess.com"]
[Date "2020.04.07"]
[Round "7"]
[White "pedroholly22"]
[Black "Chigorinetz"]
[Result "1-0"]
[WhiteElo "2345"]
[BlackElo "2494"]
[TimeControl "180+1"]
[EndTime "14:20:01 PDT"]
[Termination "pedroholly22 won by resignation"]

1. e4 {[%clk 0:03:00.2]} 1... c5 {[%clk 0:02:59.8]} 2. Nf3 {[%clk 0:02:58.8]}
2... Nc6 {[%clk 0:03:00.2]} 3. d4 {[%clk 0:02:57.7]} 3... cxd4 {[%clk
0:02:59.2]} 4. Nxd4 {[%clk 0:02:58.6]} 4... g6 {[%clk 0:02:59.6]} 5. Nc3 {[%clk
0:02:57.1]} 5... Bg7 {[%clk 0:02:59.5]} 6. Be3 {[%clk 0:02:56.1]} 6... Nf6
{[%clk 0:02:59.4]} 7. Bc4 {[%clk 0:02:56.3]} 7... O-O {[%clk 0:02:58.5]} 8. Bb3
{[%clk 0:02:56.3]} 8... d6 {[%clk 0:02:58.4]} 9. f3 {[%clk 0:02:55.7]} 9... Qa5
{[%clk 0:02:58.1]} 10. O-O {[%clk 0:02:44.3]} 10... Bd7 {[%clk 0:02:56.9]} 11.
Re1 {[%clk 0:02:41.1]} 11... Rac8 {[%clk 0:02:54]} 12. Qe2 {[%clk 0:02:38.9]}
12... Nxe4 {[%clk 0:02:35.6]} 13. Nxc6 {[%clk 0:02:26.3]} 13... Nxc3 {[%clk
0:02:34.4]} 14. Nxa5 {[%clk 0:02:25.7]} 14... Nxe2+ {[%clk 0:02:33.4]} 15. Rxe2
{[%clk 0:02:25.4]} 15... b6 {[%clk 0:02:22.2]} 16. Nc4 {[%clk 0:02:22]} 16... b5
{[%clk 0:02:13]} 17. Nd2 {[%clk 0:02:12.2]} 17... a5 {[%clk 0:02:10.5]} 18. a4
{[%clk 0:02:07.1]} 18... bxa4 {[%clk 0:02:02.8]} 19. Bxa4 {[%clk 0:02:02.9]}
19... Bxa4 {[%clk 0:02:01.7]} 20. Rxa4 {[%clk 0:02:01.9]} 20... Rxc2 {[%clk
0:02:02.6]} 21. Rxa5 {[%clk 0:02:01]} 21... Rxb2 {[%clk 0:01:52.4]} 22. Kf2
{[%clk 0:01:51.4]} 22... Rc8 {[%clk 0:01:50.9]} 23. Ne4 {[%clk 0:01:47.7]} 23...
Rxe2+ {[%clk 0:01:49.9]} 24. Kxe2 {[%clk 0:01:47.5]} 24... f5 {[%clk 0:01:50.8]}
25. Ng5 {[%clk 0:01:38.3]} 25... Bf6 {[%clk 0:01:43.3]} 26. Ra2 {[%clk
0:01:34.6]} 26... Rc3 {[%clk 0:01:34.6]} 27. Ra8+ {[%clk 0:01:26.9]} 27... Kg7
{[%clk 0:01:32.7]} 28. Ne6+ {[%clk 0:01:26.8]} 28... Kf7 {[%clk 0:01:32.6]} 29.
Nd8+ {[%clk 0:01:15.6]} 29... Kg7 {[%clk 0:01:16.6]} 30. Bd4 {[%clk 0:01:06.4]}
30... Rc2+ {[%clk 0:01:12]} 31. Kf1 {[%clk 0:01:03.3]} 31... Rc1+ {[%clk
0:01:10.9]} 32. Ke2 {[%clk 0:01:03.5]} 32... Rc2+ {[%clk 0:01:10]} 33. Kf1
{[%clk 0:00:45.4]} 33... e5 {[%clk 0:01:08.5]} 34. Bf2 {[%clk 0:00:39.2]} 34...
e4 {[%clk 0:01:04.5]} 35. fxe4 {[%clk 0:00:38.5]} 35... fxe4 {[%clk 0:01:03.8]}
36. Ra7+ {[%clk 0:00:34.1]} 36... Kg8 {[%clk 0:00:59.3]} 37. Ne6 {[%clk
0:00:34.2]} 37... d5 {[%clk 0:00:54.6]} 38. Bd4 {[%clk 0:00:28.7]} 38... Bxd4
{[%clk 0:00:46.3]} 39. Nxd4 {[%clk 0:00:28.6]} 39... Rd2 {[%clk 0:00:45.3]} 40.
Ne6 {[%clk 0:00:25.4]} 40... e3 {[%clk 0:00:37.7]} 41. h3 {[%clk 0:00:20.6]}
41... Rf2+ {[%clk 0:00:32.9]} 42. Ke1 {[%clk 0:00:19.8]} 42... Rxg2 {[%clk
0:00:23.2]} 43. Rg7+ {[%clk 0:00:18.8]} 43... Kh8 {[%clk 0:00:22.9]} 44. Rd7
{[%clk 0:00:18.2]} 44... h5 {[%clk 0:00:23]} 45. Rxd5 {[%clk 0:00:17.6]} 45...
h4 {[%clk 0:00:19.8]} 46. Nf4 {[%clk 0:00:08.9]} 46... Rg3 {[%clk 0:00:18.8]}
47. Rd7 {[%clk 0:00:05.8]} 47... g5 {[%clk 0:00:16.8]} 48. Ne6 {[%clk
0:00:03.1]} 48... g4 {[%clk 0:00:11.8]} 49. hxg4 {[%clk 0:00:03.2]} 49... h3
{[%clk 0:00:11.7]} 50. Rd8+ {[%clk 0:00:01.1]} 50... Kh7 {[%clk 0:00:11.6]} 51.
Ng5+ {[%clk 0:00:01.8]} 51... Kg6 {[%clk 0:00:11.3]} 52. Nxh3 {[%clk 0:00:02.3]}
52... Rf3 {[%clk 0:00:10.4]} 53. Re8 {[%clk 0:00:02.7]} 53... Kf7 {[%clk
0:00:09.6]} 54. Ng5+ {[%clk 0:00:01.7]} 54... Kxe8 {[%clk 0:00:09.2]} 55. Nxf3
{[%clk 0:00:02.6]} 55... Ke7 {[%clk 0:00:09.8]} 56. Ke2 {[%clk 0:00:03.5]} 56...
Kf6 {[%clk 0:00:09.5]} 57. Kxe3 {[%clk 0:00:04.4]} 1-0

[Event "*** Titled Tuesday Blitz"]
[Site "Chess.com"]
[Date "2020.04.07"]
[Round "7"]
[White "mmaks007"]
[Black "silverback96"]
[Result "0-1"]
[WhiteElo "2318"]
[BlackElo "2158"]
[TimeControl "180+1"]
[EndTime "14:20:03 PDT"]
[Termination "silverback96 won by resignation"]

1. e4 {[%clk 0:03:00.9]} 1... e6 {[%clk 0:02:06.2]} 2. d4 {[%clk 0:02:59.8]}
2... d5 {[%clk 0:02:05.8]} 3. Nc3 {[%clk 0:02:58]} 3... Bb4 {[%clk 0:02:04.8]}
4. e5 {[%clk 0:02:56.9]} 4... c5 {[%clk 0:02:02.8]} 5. Bd2 {[%clk 0:02:56.6]}
5... cxd4 {[%clk 0:01:59.9]} 6. Nb5 {[%clk 0:02:56.5]} 6... Bc5 {[%clk
0:01:54.7]} 7. Nf3 {[%clk 0:02:49.9]} 7... Nc6 {[%clk 0:01:54.6]} 8. a3 {[%clk
0:02:15.6]} 8... a6 {[%clk 0:01:53.1]} 9. b4 {[%clk 0:02:13]} 9... axb5 {[%clk
0:01:52.6]} 10. bxc5 {[%clk 0:02:11.7]} 10... b4 {[%clk 0:01:51.6]} 11. axb4
{[%clk 0:02:10.9]} 11... Rxa1 {[%clk 0:01:52.3]} 12. Qxa1 {[%clk 0:02:11.6]}
12... Qc7 {[%clk 0:01:50]} 13. Bb5 {[%clk 0:01:59.3]} 13... Ne7 {[%clk 0:01:49]}
14. O-O {[%clk 0:01:49.7]} 14... O-O {[%clk 0:01:49.5]} 15. Re1 {[%clk
0:01:50.1]} 15... Ng6 {[%clk 0:01:49.5]} 16. Nxd4 {[%clk 0:01:44.1]} 16... Ncxe5
{[%clk 0:01:44.1]} 17. Bf1 {[%clk 0:01:34.1]} 17... Ng4 {[%clk 0:01:40.8]} 18.
g3 {[%clk 0:01:34.1]} 18... e5 {[%clk 0:01:38.3]} 19. Nb5 {[%clk 0:01:29.8]}
19... Qd8 {[%clk 0:01:36.3]} 20. Nd6 {[%clk 0:01:29]} 20... Qf6 {[%clk
0:01:33.4]} 21. f4 {[%clk 0:01:21.5]} 21... exf4 {[%clk 0:01:01.8]} 22. Qxf6
{[%clk 0:01:20.4]} 22... Nxf6 {[%clk 0:01:02.7]} 23. Nxc8 {[%clk 0:01:05.8]}
23... Rxc8 {[%clk 0:01:01.4]} 24. Bh3 {[%clk 0:01:02.5]} 24... Ra8 {[%clk
0:00:50.5]} 25. gxf4 {[%clk 0:01:00.9]} 25... Ne4 {[%clk 0:00:48.6]} 26. Bc1
{[%clk 0:00:50.6]} 26... Nh4 {[%clk 0:00:48.2]} 27. Bg2 {[%clk 0:00:46]} 27...
Nxg2 {[%clk 0:00:45.5]} 28. Kxg2 {[%clk 0:00:46.9]} 28... Ra4 {[%clk 0:00:29.8]}
29. Rd1 {[%clk 0:00:43]} 29... Rxb4 {[%clk 0:00:24.7]} 30. Rxd5 {[%clk
0:00:42.6]} 30... h6 {[%clk 0:00:16.3]} 31. f5 {[%clk 0:00:39.3]} 31... Rc4
{[%clk 0:00:14.2]} 32. Be3 {[%clk 0:00:32.5]} 32... Rxc2+ {[%clk 0:00:13.2]} 33.
Kf3 {[%clk 0:00:32.7]} 33... Ng5+ {[%clk 0:00:14]} 34. Bxg5 {[%clk 0:00:32.3]}
34... hxg5 {[%clk 0:00:14.9]} 35. Kg3 {[%clk 0:00:32.8]} 35... Rc3+ {[%clk
0:00:14.8]} 36. Kg4 {[%clk 0:00:32.7]} 36... f6 {[%clk 0:00:15]} 37. h3 {[%clk
0:00:31.9]} 37... Kh7 {[%clk 0:00:15.3]} 38. Rd7 {[%clk 0:00:29.6]} 38... Rxc5
{[%clk 0:00:14]} 39. Rxb7 {[%clk 0:00:30.2]} 39... Rc4+ {[%clk 0:00:14.8]} 40.
Kg3 {[%clk 0:00:30.1]} 40... Rf4 {[%clk 0:00:15.7]} 41. Rb5 {[%clk 0:00:30.5]}
41... Kh6 {[%clk 0:00:14.5]} 42. Rc5 {[%clk 0:00:29.7]} 42... Kh5 {[%clk
0:00:14.8]} 43. Rc7 {[%clk 0:00:26.8]} 43... Kh6 {[%clk 0:00:14.1]} 44. Rc5
{[%clk 0:00:26.4]} 44... Ra4 {[%clk 0:00:14.6]} 45. Rb5 {[%clk 0:00:24.3]} 45...
Kh5 {[%clk 0:00:14.8]} 46. Rb8 {[%clk 0:00:22.1]} 46... Ra3+ {[%clk 0:00:15.3]}
47. Kg2 {[%clk 0:00:21.4]} 47... g4 {[%clk 0:00:15.4]} 48. hxg4+ {[%clk
0:00:20]} 48... Kxg4 {[%clk 0:00:16.3]} 49. Rg8 {[%clk 0:00:20.7]} 49... Ra2+
{[%clk 0:00:15.9]} 50. Kf1 {[%clk 0:00:20.6]} 50... Ra7 {[%clk 0:00:16.8]} 51.
Rb8 {[%clk 0:00:19.8]} 51... Kxf5 {[%clk 0:00:17.1]} 52. Rb5+ {[%clk 0:00:20.7]}
52... Kg4 {[%clk 0:00:17.3]} 53. Kf2 {[%clk 0:00:21.2]} 53... f5 {[%clk
0:00:17.1]} 54. Rb6 {[%clk 0:00:19.5]} 54... g5 {[%clk 0:00:14.5]} 55. Rb4+
{[%clk 0:00:17.9]} 55... f4 {[%clk 0:00:14.8]} 56. Rb8 {[%clk 0:00:17.7]} 56...
Ra2+ {[%clk 0:00:14.8]} 57. Kf1 {[%clk 0:00:17.5]} 57... Kg3 {[%clk 0:00:15.3]}
58. Rg8 {[%clk 0:00:17.4]} 58... Ra1+ {[%clk 0:00:14.5]} 59. Ke2 {[%clk
0:00:17]} 59... f3+ {[%clk 0:00:15.4]} 60. Ke3 {[%clk 0:00:17.6]} 60... Re1+
{[%clk 0:00:15.3]} 61. Kd2 {[%clk 0:00:16.8]} 61... Re5 {[%clk 0:00:15.7]} 62.
Rxg5+ {[%clk 0:00:15.2]} 62... Rxg5 {[%clk 0:00:14.9]} 0-1

[Event "*** Titled Tuesday Blitz"]
[Site "Chess.com"]
[Date "2020.04.07"]
[Round "7"]
[White "GodDMuhammad"]
[Black "Walter_White_Poland"]
[Result "1-0"]
[WhiteElo "2319"]
[BlackElo "2126"]
[TimeControl "180+1"]
[EndTime "14:20:05 PDT"]
[Termination "GodDMuhammad won by resignation"]

1. f4 {[%clk 0:03:00.9]} 1... d5 {[%clk 0:02:58.4]} 2. Nf3 {[%clk 0:03:01.1]}
2... c6 {[%clk 0:02:58.1]} 3. g3 {[%clk 0:03:01.7]} 3... Bg4 {[%clk 0:02:57.8]}
4. Bg2 {[%clk 0:03:00.7]} 4... Bxf3 {[%clk 0:02:57.8]} 5. Bxf3 {[%clk
0:03:00.9]} 5... e6 {[%clk 0:02:57.8]} 6. d3 {[%clk 0:03:01.4]} 6... f5 {[%clk
0:02:55.7]} 7. c3 {[%clk 0:03:00.3]} 7... Nf6 {[%clk 0:02:55.4]} 8. Qc2 {[%clk
0:03:00.2]} 8... h5 {[%clk 0:02:51.4]} 9. Nd2 {[%clk 0:02:55.2]} 9... h4 {[%clk
0:02:50.3]} 10. e4 {[%clk 0:02:55.7]} 10... hxg3 {[%clk 0:02:47.5]} 11. hxg3
{[%clk 0:02:56.6]} 11... Rxh1+ {[%clk 0:02:47.1]} 12. Bxh1 {[%clk 0:02:57.5]}
12... Nbd7 {[%clk 0:02:35.8]} 13. e5 {[%clk 0:02:21.4]} 13... Ng4 {[%clk
0:02:32]} 14. Nf3 {[%clk 0:02:20.2]} 14... Qb6 {[%clk 0:01:54.7]} 15. d4 {[%clk
0:02:16]} 15... Be7 {[%clk 0:01:48.4]} 16. Bg2 {[%clk 0:02:05.1]} 16... c5
{[%clk 0:01:26.8]} 17. Bd2 {[%clk 0:01:56.7]} 17... Rc8 {[%clk 0:01:25.4]} 18.
O-O-O {[%clk 0:01:20.3]} 18... Qa6 {[%clk 0:01:01.5]} 19. Kb1 {[%clk 0:01:12.9]}
19... Qe2 {[%clk 0:00:50.7]} 20. Bc1 {[%clk 0:01:03.4]} 20... Qxc2+ {[%clk
0:00:40.4]} 21. Kxc2 {[%clk 0:01:02.6]} 21... Nf2 {[%clk 0:00:38.1]} 22. Rf1
{[%clk 0:01:00.1]} 22... Ne4 {[%clk 0:00:36.4]} 23. Rg1 {[%clk 0:00:53.2]} 23...
Kf7 {[%clk 0:00:31.5]} 24. Be3 {[%clk 0:00:50.2]} 24... cxd4 {[%clk 0:00:29.9]}
25. Bxd4 {[%clk 0:00:47.1]} 25... b6 {[%clk 0:00:26.5]} 26. g4 {[%clk
0:00:38.2]} 26... g6 {[%clk 0:00:26.3]} 27. gxf5 {[%clk 0:00:37.1]} 27... gxf5
{[%clk 0:00:26.6]} 28. Rh1 {[%clk 0:00:35.1]} 28... Rg8 {[%clk 0:00:26]} 29. Bf1
{[%clk 0:00:20.4]} 29... Ng3 {[%clk 0:00:20.6]} 30. Rg1 {[%clk 0:00:15.3]} 30...
Nxf1 {[%clk 0:00:19.2]} 31. Rxf1 {[%clk 0:00:16.2]} 31... Rg2+ {[%clk
0:00:17.7]} 32. Rf2 {[%clk 0:00:15.2]} 32... Rxf2+ {[%clk 0:00:16.9]} 33. Bxf2
{[%clk 0:00:16.1]} 33... Kg6 {[%clk 0:00:14.9]} 34. Nd4 {[%clk 0:00:16.1]} 34...
Bc5 {[%clk 0:00:10.9]} 35. Kd3 {[%clk 0:00:16.4]} 35... Bxd4 {[%clk 0:00:11]}
36. Bxd4 {[%clk 0:00:17.2]} 36... Kh5 {[%clk 0:00:11]} 37. a4 {[%clk 0:00:15.4]}
37... Kg4 {[%clk 0:00:10.6]} 38. Be3 {[%clk 0:00:16]} 38... Kf3 {[%clk
0:00:05.8]} 39. b4 {[%clk 0:00:15.7]} 39... a6 {[%clk 0:00:05]} 40. Bc1 {[%clk
0:00:12.8]} 40... b5 {[%clk 0:00:04.8]} 41. axb5 {[%clk 0:00:11.9]} 41... axb5
{[%clk 0:00:05.1]} 42. Kd4 {[%clk 0:00:12.8]} 42... Ke2 {[%clk 0:00:05]} 43. Be3
{[%clk 0:00:13]} 43... Kd1 {[%clk 0:00:04]} 44. Bf2 {[%clk 0:00:11.9]} 44... Kc2
{[%clk 0:00:03.9]} 45. Bh4 {[%clk 0:00:12.2]} 45... Kd2 {[%clk 0:00:03]} 46. Bg5
{[%clk 0:00:11.7]} 46... Ke2 {[%clk 0:00:03.3]} 47. Bh4 {[%clk 0:00:11.8]} 47...
Kf3 {[%clk 0:00:03.7]} 48. Bg5 {[%clk 0:00:12.4]} 48... Kg4 {[%clk 0:00:04]} 49.
Ke3 {[%clk 0:00:12.4]} 49... Kg3 {[%clk 0:00:03.3]} 50. Ke2 {[%clk 0:00:12.4]}
50... Nb6 {[%clk 0:00:03.3]} 51. Ke3 {[%clk 0:00:12.6]} 51... Nd7 {[%clk
0:00:02.9]} 52. Kd3 {[%clk 0:00:12.9]} 52... Kg4 {[%clk 0:00:03.3]} 53. Kd4
{[%clk 0:00:13]} 53... Kf3 {[%clk 0:00:03.2]} 54. Kd3 {[%clk 0:00:13.5]} 54...
Nb6 {[%clk 0:00:03.2]} 55. Bh6 {[%clk 0:00:12.8]} 55... Nc4 {[%clk 0:00:03.2]}
56. Kd4 {[%clk 0:00:13.3]} 56... Nb2 {[%clk 0:00:02.2]} 57. Kc5 {[%clk
0:00:13.3]} 57... Nd3+ {[%clk 0:00:02.1]} 58. Kxb5 {[%clk 0:00:13.5]} 58... Nxf4
{[%clk 0:00:02.4]} 59. Bxf4 {[%clk 0:00:13.6]} 59... Kxf4 {[%clk 0:00:02.3]} 60.
Kc6 {[%clk 0:00:14.5]} 60... Kxe5 {[%clk 0:00:02.7]} 61. b5 {[%clk 0:00:15.4]}
61... f4 {[%clk 0:00:03.3]} 62. b6 {[%clk 0:00:16.3]} 62... f3 {[%clk
0:00:04.1]} 63. b7 {[%clk 0:00:17.2]} 63... f2 {[%clk 0:00:04.9]} 64. b8=Q+
{[%clk 0:00:18.1]} 64... Ke4 {[%clk 0:00:05.5]} 65. Qf8 {[%clk 0:00:17.8]} 65...
Ke3 {[%clk 0:00:05.4]} 66. Qf6 {[%clk 0:00:18.1]} 66... Kd2 {[%clk 0:00:04.3]}
67. Qxf2+ {[%clk 0:00:18.2]} 67... Kxc3 {[%clk 0:00:04.4]} 68. Qe3+ {[%clk
0:00:18.6]} 68... Kc2 {[%clk 0:00:04.2]} 69. Qxe6 {[%clk 0:00:19.5]} 69... d4
{[%clk 0:00:04.6]} 70. Qe4+ {[%clk 0:00:19.3]} 70... d3 {[%clk 0:00:04.3]} 71.
Kc5 {[%clk 0:00:19.8]} 71... Kc3 {[%clk 0:00:05.2]} 72. Qd4+ {[%clk 0:00:20.2]}
72... Kc2 {[%clk 0:00:05.1]} 73. Qc4+ {[%clk 0:00:20.8]} 73... Kd2 {[%clk
0:00:04.7]} 74. Kd4 {[%clk 0:00:21.3]} 1-0